[Event "29th Czech Open-Rapid 2018"]
[Site "Pardubice"]
[Date "2018.07.19"]
[Round "6"]
[White "Gomes, Mary Ann"]
[Black "Kolasa, Pjotrs"]
[Result "0-1"]
[ECO "C65"]
[WhiteElo "2297"]
[BlackElo "2104"]
[Annotator "NA"]
[PlyCount "90"]
[EventDate "2018.07.18"]
[EventType "swiss"]
[EventCountry "CZE"]
[SourceTitle "playchess.com"]
[Source "ChessBase"]
[SourceQuality "1"]
[TimeControl "900+10"]

1. e4 {[%emt 0:00:00]} e5 {[%emt 0:00:03]} 2. Nf3 {[%emt 0:00:00]} Nc6 {[%emt 0:00:02]} 3. Bb5 {[%emt 0:00:00]} Nf6 {[%emt 0:00:02]} 4. d3 {[%emt 0:00:02]} Bc5 {[%emt 0:00:02]} 5. O-O {[%emt 0:00:10]} Nd4 {[%emt 0:00:07]} 6. Nxd4 {[%emt 0:00:10]} Bxd4 {[%emt 0:00:02]} 7. c3 {[%emt 0:00:02]} Bb6 {[%emt 0:00:01]} 8. d4 {[%emt 0:00:25]} O-O {[%emt 0:00:57]} 9. dxe5 {[%emt 0:01:24]} Nxe4 {[%emt 0:00:03]} 10. Qd5 {[%emt 0:00:58]} Nxf2 {[%emt 0:00:13]} 11. Rxf2 {[%emt 0:00:21]} c6 {[%emt 0:00:02]} 12. Qf3 {[%emt 0:00:45]} cxb5 {[%emt 0:00:05]} 13. Be3 {[%emt 0:00:01]} Bxe3 {[%emt 0:02:30]} 14. Qxe3 {[%emt 0:00:02]} Qe7 {[%emt 0:00:01]} 15. Nd2 {[%emt 0:02:19]} d6 {[%emt 0:00:17]} 16. Re1 {[%emt 0:00:02]} dxe5 {[%emt 0:00:07]} 17. Qxe5 {[%emt 0:00:01]} Qxe5 {[%emt 0:00:30]} 18. Rxe5 {[%emt 0:00:02]} Bd7 {[%emt 0:00:50]} 19. Nf3 {[%emt 0:00:09]} Rfe8 {[%emt 0:00:11]} 20. Rh5 {[%emt 0:01:41]} f6 {[%emt 0:00:51]} 21. Rd2 {[%emt 0:00:13]} Bc6 {[%emt 0:04:03]} 22. Nd4 {[%emt 0:00:06]} Rad8 {[%emt 0:00:31]} 23. Kf2 {[%emt 0:00:05]} Re5 {[%emt 0:01:39]} 24. Rxe5 {[%emt 0:01:03]} fxe5 {[%emt 0:00:02]} 25. Nf3 {[%emt 0:00:02]} Rxd2+ {[%emt 0:00:01]} 26. Nxd2 {[%emt 0:00:01]} Kf7 {[%emt 0:00:08]} 27. g3 {[%emt 0:00:02]} Kf6 {[%emt 0:00:10]} 28. Ke3 {[%emt 0:00:12]} Kf5 {[%emt 0:00:03]} 29. h3 {[%emt 0:00:43]} h5 {[%emt 0:00:07]} 30. Nb3 {[%emt 0:00:27]} b6 {[%emt 0:00:16]} 31. Nc1 {[%emt 0:00:07]} Bg2 {[%emt 0:00:40]} 32. h4 {[%emt 0:00:01]} Kg4 {[%emt 0:01:15]} 33. Kf2 {[%emt 0:00:02]} Be4 {[%emt 0:00:05]} 34. b4 {[%emt 0:00:06]} Bd5 {[%emt 0:00:46]} 35. Nd3 {[%emt 0:00:01]} Kf5 {[%emt 0:00:11]} 36. a3 {[%emt 0:00:05]} Bc4 {[%emt 0:00:01]} 37. Ne1 {[%emt 0:01:02]} Ke4 {[%emt 0:00:15]} 38. Nf3 {[%emt 0:00:02]} Kd3 {[%emt 0:00:48]} 39. Nxe5+ {[%emt 0:00:02]} Kxc3 {[%emt 0:00:01]} 40. Ke3 {[%emt 0:02:28]} Kb3 {[%emt 0:00:30]} 41. Kd4 {[%emt 0:00:03]} Kxa3 {[%emt 0:00:13]} 42. Nc6 {[%emt 0:00:05]} a5 {[%emt 0:00:53]} 43. bxa5 {[%emt 0:00:03]} bxa5 {[%emt 0:00:02]} 44. Nxa5 {[%emt 0:00:02]} Bf7 {[%emt 0:00:20]} 45. Ke3 {[%emt 0:03:27]} Bd5 {[%emt 0:01:10]} 0-1

[Event "29th Czech Open-Rapid 2018"]
[Site "Pardubice"]
[Date "2018.07.19"]
[Round "6"]
[White "Rosko, Lubos"]
[Black "Michelle Catherina, P."]
[Result "1/2-1/2"]
[ECO "D38"]
[WhiteElo "2294"]
[BlackElo "1970"]
[Annotator "NA"]
[PlyCount "84"]
[EventDate "2018.07.18"]
[EventType "swiss"]
[EventCountry "CZE"]
[SourceTitle "playchess.com"]
[Source "ChessBase"]
[SourceQuality "1"]
[TimeControl "900+10"]

1. d4 {[%emt 0:00:00]} Nf6 {[%emt 0:00:00]} 2. Nf3 {[%emt 0:00:03]} e6 {[%emt 0:00:01]} 3. c4 {[%emt 0:00:29]} d5 {[%emt 0:00:01]} 4. Nc3 {[%emt 0:00:07]} Bb4 {[%emt 0:00:04]} 5. Qa4+ {[%emt 0:00:19]} Nc6 {[%emt 0:00:01]} 6. e3 {[%emt 0:00:19]} O-O {[%emt 0:00:16]} 7. Bd2 {[%emt 0:00:13]} Re8 {[%emt 0:00:49]} 8. a3 {[%emt 0:00:37]} Bf8 {[%emt 0:00:10]} 9. Be2 {[%emt 0:01:28]} a6 {[%emt 0:02:18]} 10. O-O {[%emt 0:00:56]} dxc4 {[%emt 0:01:09]} 11. Qxc4 {[%emt 0:00:30]} Bd6 {[%emt 0:02:28]} 12. e4 {[%emt 0:00:38]} e5 {[%emt 0:00:22]} 13. d5 {[%emt 0:01:56]} Ne7 {[%emt 0:00:08]} 14. Nh4 {[%emt 0:01:29]} Ng6 {[%emt 0:02:44]} 15. Nxg6 {[%emt 0:00:30]} hxg6 {[%emt 0:00:28]} 16. a4 {[%emt 0:00:33]} Nh5 {[%emt 0:01:34]} 17. g3 {[%emt 0:01:20]} Bh3 {[%emt 0:00:39]} 18. Rfd1 {[%emt 0:00:01]} Nf6 {[%emt 0:00:02]} 19. Bg5 {[%emt 0:00:39]} Qc8 {[%emt 0:00:26]} 20. a5 {[%emt 0:00:12]} Kh7 {[%emt 0:00:54]} 21. b4 {[%emt 0:02:00]} Bg4 {[%emt 0:00:42]} 22. f3 {[%emt 0:00:14]} Bd7 {[%emt 0:00:27]} 23. Rab1 {[%emt 0:00:08]} b5 {[%emt 0:01:34]} 24. Qd3 {[%emt 0:00:25]} Rh8 {[%emt 0:00:05]} 25. Be3 {[%emt 0:00:27]} Kg8 {[%emt 0:00:36]} 26. Bf1 {[%emt 0:00:25]} Bh3 {[%emt 0:00:05]} 27. Rd2 {[%emt 0:00:12]} Qf8 {[%emt 0:00:31]} 28. Na2 {[%emt 0:00:06]} Qe7 {[%emt 0:00:22]} 29. Rc2 {[%emt 0:00:09]} Bxf1 {[%emt 0:00:22]} 30. Qxf1 {[%emt 0:00:05]} Nd7 {[%emt 0:00:07]} 31. Rc6 {[%emt 0:00:10]} f5 {[%emt 0:00:19]} 32. Qd3 {[%emt 0:00:21]} f4 {[%emt 0:00:10]} 33. Bf2 {[%emt 0:00:29]} fxg3 {[%emt 0:00:11]} 34. Bxg3 {[%emt 0:00:06]} g5 {[%emt 0:00:13]} 35. Qe2 {[%emt 0:00:30]} Rh6 {[%emt 0:00:07]} 36. Qg2 {[%emt 0:00:16]} Nb8 {[%emt 0:00:08]} 37. Rc2 {[%emt 0:00:05]} Nd7 {[%emt 0:00:01]} 38. Rc6 {[%emt 0:00:02]} Nb8 {[%emt 0:00:01]} 39. Rc2 {[%emt 0:00:05]} Nd7 {[%emt 0:00:01]} 40. Rc6 {[%emt 0:01:28]} Nb8 {[%emt 0:00:00]} 41. Rc2 {[%emt 0:00:39]} Nd7 {[%emt 0:00:01]} 42. Rc6 {[%emt 0:00:02]} Nb8 {[%emt 0:00:00]} 1/2-1/2

[Event "29th Czech Open-Rapid 2018"]
[Site "Pardubice"]
[Date "2018.07.19"]
[Round "6"]
[White "Becker, Dirk"]
[Black "Barak, Gil"]
[Result "0-1"]
[ECO "D00"]
[WhiteElo "2288"]
[BlackElo "1946"]
[Annotator "NA"]
[PlyCount "136"]
[EventDate "2018.07.18"]
[EventType "swiss"]
[EventCountry "CZE"]
[SourceTitle "playchess.com"]
[Source "ChessBase"]
[SourceQuality "1"]
[TimeControl "900+10"]

1. d4 {[%emt 0:00:00]} d5 {[%emt 0:00:00]} 2. Bf4 {[%emt 0:00:00]} e6 {[%emt 0:00:00]} 3. e3 {[%emt 0:00:02]} c5 {[%emt 0:00:00]} 4. c3 {[%emt 0:00:02]} Nc6 {[%emt 0:00:00]} 5. Nd2 {[%emt 0:00:09]} Bd6 {[%emt 0:00:00]} 6. Bg3 {[%emt 0:00:01]} Nf6 {[%emt 0:00:00]} 7. Bd3 {[%emt 0:00:04]} O-O {[%emt 0:00:01]} 8. Ngf3 {[%emt 0:00:02]} b6 {[%emt 0:00:02]} 9. Qe2 {[%emt 0:00:13]} Bb7 {[%emt 0:00:04]} 10. Rd1 {[%emt 0:00:01]} Re8 {[%emt 0:00:10]} 11. e4 {[%emt 0:00:01]} dxe4 {[%emt 0:00:26]} 12. Nxe4 {[%emt 0:00:47]} Nxe4 {[%emt 0:00:57]} 13. Bxe4 {[%emt 0:00:04]} cxd4 {[%emt 0:03:43]} 14. Nxd4 {[%emt 0:00:55]} Nxd4 {[%emt 0:00:41]} 15. Rxd4 {[%emt 0:00:10]} Bd5 {[%emt 0:00:01]} 16. O-O {[%emt 0:01:00]} Bxg3 {[%emt 0:02:58]} 17. hxg3 {[%emt 0:00:15]} Qg5 {[%emt 0:01:01]} 18. Bxd5 {[%emt 0:00:14]} exd5 {[%emt 0:00:02]} 19. Qd3 {[%emt 0:00:18]} Rad8 {[%emt 0:00:28]} 20. Rd1 {[%emt 0:00:02]} g6 {[%emt 0:00:29]} 21. a4 {[%emt 0:00:27]} Qh5 {[%emt 0:00:42]} 22. g4 {[%emt 0:00:54]} Qg5 {[%emt 0:00:57]} 23. Qf3 {[%emt 0:00:29]} Re5 {[%emt 0:02:14]} 24. Rf4 {[%emt 0:02:36]} Rde8 {[%emt 0:00:20]} 25. Rf1 {[%emt 0:04:14]} Re1 {[%emt 0:00:38]} 26. g3 {[%emt 0:00:11]} Qh6 {[%emt 0:01:33]} 27. Qg2 {[%emt 0:00:11]} R8e5 {[%emt 0:00:53]} 28. b4 {[%emt 0:02:09]} Qf8 {[%emt 0:00:24]} 29. Qf3 {[%emt 0:01:47]} Qh6 {[%emt 0:00:26]} 30. Qg2 {[%emt 0:00:05]} Qf8 {[%emt 0:00:01]} 31. Rd4 {[%emt 0:00:56]} Qe7 {[%emt 0:00:14]} 32. Qf3 {[%emt 0:00:22]} Qg5 {[%emt 0:00:31]} 33. Rd1 {[%emt 0:00:26]} R1e2 {[%emt 0:00:06]} 34. a5 {[%emt 0:00:33]} Kg7 {[%emt 0:00:10]} 35. Kg2 {[%emt 0:00:20]} R5e3 {[%emt 0:00:16]} 36. Qxd5 {[%emt 0:00:26]} Re5 {[%emt 0:00:14]} 37. Qf3 {[%emt 0:00:09]} R5e3 {[%emt 0:00:06]} 38. Qd5 {[%emt 0:00:23]} Re5 {[%emt 0:00:03]} 39. Qd4 {[%emt 0:00:00]} R2e4 {[%emt 0:00:10]} 40. Qd2 {[%emt 0:00:24]} Qxg4 {[%emt 0:00:11]} 41. Rh1 {[%emt 0:00:09]} g5 {[%emt 0:00:16]} 42. Qd6 {[%emt 0:00:11]} Re6 {[%emt 0:00:07]} 43. Qd3 {[%emt 0:00:09]} Qf5 {[%emt 0:00:14]} 44. Qf3 {[%emt 0:00:08]} Qe5 {[%emt 0:00:07]} 45. Rd3 {[%emt 0:00:09]} Re2 {[%emt 0:00:12]} 46. Qh5 {[%emt 0:00:19]} h6 {[%emt 0:00:01]} 47. Qf3 {[%emt 0:00:01]} Rf6 {[%emt 0:00:05]} 48. Rhd1 {[%emt 0:00:19]} Rxf3 {[%emt 0:00:04]} 49. Rxf3 {[%emt 0:00:03]} g4 50. Rf4 h5 {[%emt 0:00:21]} 51. Rd7 {[%emt 0:00:05]} Qe6 {[%emt 0:00:06]} 52. Rd1 {[%emt 0:00:05]} Re1 {[%emt 0:00:04]} 53. Rxe1 {[%emt 0:00:03]} Qxe1 {[%emt 0:00:01]} 54. axb6 {[%emt 0:00:04]} axb6 {[%emt 0:00:01]} 55. Rc4 {[%emt 0:00:19]} Qe2 {[%emt 0:00:06]} 56. Rf4 {[%emt 0:00:01]} Qd2 {[%emt 0:00:26]} 57. Kf1 {[%emt 0:00:24]} Qxc3 {[%emt 0:00:10]} 58. Ke2 {[%emt 0:00:01]} Qc2+ {[%emt 0:00:07]} 59. Ke3 {[%emt 0:00:02]} Qd1 {[%emt 0:00:08]} 60. Ke4 {[%emt 0:00:08]} Qd6 {[%emt 0:00:28]} 61. Ke3 {[%emt 0:00:06]} Kg6 {[%emt 0:00:05]} 62. Re4 {[%emt 0:00:05]} f5 {[%emt 0:00:08]} 63. Rf4 {[%emt 0:00:18]} Qd5 {[%emt 0:00:05]} 64. Ke2 {[%emt 0:00:05]} Kg5 {[%emt 0:00:05]} 65. Ke3 {[%emt 0:00:04]} Qd1 {[%emt 0:00:18]} 66. Rd4 {[%emt 0:00:05]} Qf3+ {[%emt 0:00:04]} 67. Kd2 {[%emt 0:00:01]} Qxf2+ {[%emt 0:00:01]} 68. Kc3 {[%emt 0:00:01]} Qxg3+ {[%emt 0:00:04]} 0-1

[Event "29th Czech Open-Rapid 2018"]
[Site "Pardubice"]
[Date "2018.07.19"]
[Round "6"]
[White "Freisler, Pavel"]
[Black "Jun, Rudolf"]
[Result "0-1"]
[ECO "E62"]
[WhiteElo "2237"]
[BlackElo "1651"]
[Annotator "NA"]
[PlyCount "132"]
[EventDate "2018.07.18"]
[EventType "swiss"]
[EventCountry "CZE"]
[SourceTitle "playchess.com"]
[Source "ChessBase"]
[SourceQuality "1"]
[TimeControl "900+10"]

1. Nf3 {[%emt 0:00:00]} Nf6 {[%emt 0:00:00]} 2. c4 {[%emt 0:00:00]} g6 {[%emt 0:00:00]} 3. Nc3 {[%emt 0:00:00]} d6 {[%emt 0:00:00]} 4. d4 {[%emt 0:00:00]} Bg7 {[%emt 0:00:00]} 5. g3 {[%emt 0:00:01]} O-O {[%emt 0:00:00]} 6. Bg2 {[%emt 0:00:02]} Nh5 {[%emt 0:00:22]} 7. e4 {[%emt 0:00:13]} e5 {[%emt 0:00:03]} 8. dxe5 {[%emt 0:01:14]} dxe5 {[%emt 0:00:02]} 9. Qxd8 {[%emt 0:00:01]} Rxd8 {[%emt 0:00:02]} 10. Bg5 {[%emt 0:00:02]} f6 {[%emt 0:00:10]} 11. Be3 {[%emt 0:00:02]} Na6 {[%emt 0:00:17]} 12. Ke2 {[%emt 0:00:43]} Be6 {[%emt 0:00:19]} 13. Rhd1 {[%emt 0:00:08]} Bxc4+ {[%emt 0:00:24]} 14. Ke1 {[%emt 0:00:10]} Nb4 {[%emt 0:00:26]} 15. Rd2 {[%emt 0:01:43]} Rxd2 {[%emt 0:00:14]} 16. Kxd2 {[%emt 0:00:07]} Rd8+ {[%emt 0:00:01]} 17. Kc1 {[%emt 0:00:03]} f5 {[%emt 0:00:56]} 18. Ne1 {[%emt 0:02:42]} f4 {[%emt 0:02:31]} 19. Bc5 {[%emt 0:00:19]} Nc6 {[%emt 0:00:11]} 20. b3 {[%emt 0:00:43]} Be6 {[%emt 0:01:13]} 21. Bf1 {[%emt 0:01:29]} b6 {[%emt 0:00:08]} 22. Ba3 {[%emt 0:00:04]} fxg3 {[%emt 0:00:09]} 23. hxg3 {[%emt 0:00:31]} Bh6+ {[%emt 0:00:04]} 24. Kb1 {[%emt 0:00:23]} Nd4 {[%emt 0:02:17]} 25. Nd3 {[%emt 0:00:54]} Nf3 {[%emt 0:00:50]} 26. Be2 {[%emt 0:00:20]} Bg4 {[%emt 0:00:36]} 27. Kb2 {[%emt 0:01:41]} Nh2 {[%emt 0:01:55]} 28. Kc2 {[%emt 0:01:10]} Bxe2 {[%emt 0:00:21]} 29. Nxe2 {[%emt 0:00:02]} Nf3 {[%emt 0:00:01]} 30. Bb2 {[%emt 0:00:54]} Nf6 {[%emt 0:00:35]} 31. Rh1 {[%emt 0:00:40]} Bg5 {[%emt 0:01:03]} 32. Nc3 {[%emt 0:00:25]} c6 {[%emt 0:00:59]} 33. Rd1 {[%emt 0:01:49]} Bh6 {[%emt 0:00:52]} 34. Nb4 {[%emt 0:00:26]} Nd4+ {[%emt 0:00:12]} 35. Kb1 {[%emt 0:00:05]} a5 {[%emt 0:00:01]} 36. Nd3 {[%emt 0:00:05]} Nf3 {[%emt 0:00:18]} 37. Kc2 {[%emt 0:00:09]} b5 {[%emt 0:00:38]} 38. Nc5 {[%emt 0:00:46]} Nd4+ {[%emt 0:00:03]} 39. Kb1 {[%emt 0:00:02]} Bf8 {[%emt 0:00:07]} 40. Nd3 {[%emt 0:01:05]} Nf3 {[%emt 0:00:32]} 41. a4 {[%emt 0:00:21]} b4 {[%emt 0:00:10]} 42. Ne2 {[%emt 0:00:01]} Nxe4 {[%emt 0:00:06]} 43. Kc2 {[%emt 0:00:06]} Nd4+ {[%emt 0:00:52]} 44. Bxd4 {[%emt 0:00:03]} exd4 {[%emt 0:00:01]} 45. f3 {[%emt 0:00:10]} Nf6 {[%emt 0:00:25]} 46. Nef4 {[%emt 0:00:21]} Bd6 {[%emt 0:00:34]} 47. Ne6 {[%emt 0:00:05]} Rc8 {[%emt 0:00:12]} 48. Nxd4 {[%emt 0:00:12]} c5 {[%emt 0:00:09]} 49. Nb5 {[%emt 0:00:10]} Bxg3 {[%emt 0:00:03]} 50. Nb2 {[%emt 0:00:05]} Re8 {[%emt 0:01:07]} 51. Nc4 {[%emt 0:00:04]} Re2+ {[%emt 0:00:01]} 52. Rd2 {[%emt 0:00:17]} Rxd2+ {[%emt 0:00:11]} 53. Kxd2 {[%emt 0:00:01]} h5 {[%emt 0:00:00]} 54. Ke2 {[%emt 0:00:03]} h4 {[%emt 0:00:05]} 55. Kf1 {[%emt 0:00:01]} Nh5 {[%emt 0:00:14]} 56. Nbd6 {[%emt 0:00:51]} h3 {[%emt 0:00:32]} 57. Ne4 {[%emt 0:00:07]} Bc7 {[%emt 0:00:02]} 58. Ne3 {[%emt 0:00:10]} Kg7 {[%emt 0:00:25]} 59. Ng4 {[%emt 0:00:03]} Ng3+ {[%emt 0:00:27]} 60. Nxg3 {[%emt 0:00:05]} Bxg3 {[%emt 0:00:01]} 61. Ne3 {[%emt 0:00:04]} Kf6 {[%emt 0:00:08]} 62. Nc4 {[%emt 0:00:05]} Bc7 {[%emt 0:00:02]} 63. Kf2 {[%emt 0:00:03]} Kf5 {[%emt 0:00:09]} 64. Ne3+ {[%emt 0:00:10]} Ke5 {[%emt 0:00:08]} 65. Nc2 {[%emt 0:00:06]} Kd5 {[%emt 0:00:08]} 66. Ne3+ {[%emt 0:00:02]} Kd4 {[%emt 0:00:03]} 0-1

[Event "29th Czech Open-Rapid 2018"]
[Site "Pardubice"]
[Date "2018.07.19"]
[Round "6"]
[White "Vusatiuk, Vladimir"]
[Black "Matviishen, Viktor"]
[Result "1-0"]
[ECO "E53"]
[WhiteElo "2230"]
[BlackElo "2425"]
[Annotator "NA"]
[PlyCount "92"]
[EventDate "2018.07.18"]
[EventType "swiss"]
[EventCountry "CZE"]
[SourceTitle "playchess.com"]
[Source "ChessBase"]
[SourceQuality "1"]
[TimeControl "900+10"]

1. d4 {[%emt 0:00:02]} Nf6 {[%emt 0:00:00]} 2. c4 {[%emt 0:00:02]} e6 {[%emt 0:00:00]} 3. Nc3 {[%emt 0:00:02]} Bb4 {[%emt 0:00:00]} 4. e3 {[%emt 0:00:02]} O-O {[%emt 0:00:04]} 5. Bd3 {[%emt 0:00:03]} d5 {[%emt 0:00:03]} 6. Nf3 {[%emt 0:00:44]} c5 {[%emt 0:00:19]} 7. O-O {[%emt 0:00:10]} cxd4 {[%emt 0:00:11]} 8. exd4 {[%emt 0:00:02]} dxc4 {[%emt 0:00:13]} 9. Bxc4 {[%emt 0:00:01]} b6 {[%emt 0:00:06]} 10. Qb3 {[%emt 0:00:09]} Bxc3 {[%emt 0:00:11]} 11. bxc3 {[%emt 0:00:02]} Nc6 {[%emt 0:00:35]} 12. Ba3 {[%emt 0:00:38]} Na5 {[%emt 0:00:16]} 13. Qa4 {[%emt 0:00:29]} Bd7 {[%emt 0:00:20]} 14. Bb5 {[%emt 0:00:01]} Bxb5 {[%emt 0:00:02]} 15. Qxb5 {[%emt 0:00:02]} Re8 {[%emt 0:00:04]} 16. Bb4 {[%emt 0:00:16]} a6 {[%emt 0:00:26]} 17. Qe2 {[%emt 0:00:03]} Nc6 {[%emt 0:00:03]} 18. Ba3 {[%emt 0:00:01]} b5 {[%emt 0:03:00]} 19. Bc5 {[%emt 0:00:30]} Nd5 {[%emt 0:00:46]} 20. c4 {[%emt 0:00:44]} bxc4 {[%emt 0:00:02]} 21. Qxc4 {[%emt 0:00:01]} Qa5 {[%emt 0:00:18]} 22. Rab1 {[%emt 0:02:08]} Rec8 {[%emt 0:00:03]} 23. Rfc1 {[%emt 0:00:09]} h6 {[%emt 0:01:16]} 24. g3 {[%emt 0:00:26]} Rab8 {[%emt 0:00:45]} 25. Rxb8 {[%emt 0:00:19]} Rxb8 {[%emt 0:00:01]} 26. Bd6 {[%emt 0:00:03]} Rb6 {[%emt 0:01:15]} 27. Ne5 {[%emt 0:01:18]} Nxe5 {[%emt 0:01:06]} 28. dxe5 {[%emt 0:00:07]} Qd2 {[%emt 0:00:06]} 29. Qc8+ {[%emt 0:00:19]} Kh7 {[%emt 0:00:01]} 30. Qc2+ {[%emt 0:00:01]} Qxc2 31. Rxc2 Kg6 {[%emt 0:00:18]} 32. Kg2 {[%emt 0:00:47]} h5 {[%emt 0:00:02]} 33. h3 {[%emt 0:00:36]} Rb5 {[%emt 0:02:01]} 34. Rc6 {[%emt 0:00:39]} Ra5 {[%emt 0:00:01]} 35. a3 {[%emt 0:00:01]} Ra4 {[%emt 0:00:18]} 36. Rc8 {[%emt 0:00:47]} Nb6 {[%emt 0:00:23]} 37. Rg8 {[%emt 0:02:17]} Nc4 {[%emt 0:02:15]} 38. Bf8 {[%emt 0:00:03]} Nxe5 {[%emt 0:00:02]} 39. Rxg7+ {[%emt 0:00:04]} Kf6 {[%emt 0:00:14]} 40. Rh7 {[%emt 0:00:03]} Ng6 {[%emt 0:01:22]} 41. Bg7+ {[%emt 0:00:51]} Ke7 {[%emt 0:00:54]} 42. Rxh5 {[%emt 0:00:02]} Rxa3 {[%emt 0:00:46]} 43. h4 {[%emt 0:00:03]} a5 {[%emt 0:01:19]} 44. Rb5 {[%emt 0:00:53]} f6 {[%emt 0:00:38]} 45. Rb7+ {[%emt 0:00:17]} Kd6 {[%emt 0:00:05]} 46. h5 {[%emt 0:00:02]} Kd5 1-0

[Event "29th Czech Open-Rapid 2018"]
[Site "Pardubice"]
[Date "2018.07.19"]
[Round "6"]
[White "Balint, Vilmos"]
[Black "Kusa, Jakub"]
[Result "*"]
[ECO "C33"]
[WhiteElo "2226"]
[BlackElo "1781"]
[Annotator "NA"]
[PlyCount "36"]
[EventDate "2018.07.18"]
[EventType "swiss"]
[EventCountry "CZE"]
[SourceTitle "playchess.com"]
[Source "ChessBase"]
[SourceQuality "1"]
[TimeControl "900+10"]

1. e4 {[%emt 0:00:00]} e5 {[%emt 0:00:00]} 2. f4 {[%emt 0:00:00]} exf4 {[%emt 0:00:00]} 3. Bc4 {[%emt 0:00:00]} d6 {[%emt 0:00:26]} 4. d4 {[%emt 0:00:23]} g5 {[%emt 0:00:08]} 5. h4 {[%emt 0:00:15]} Qe7 {[%emt 0:00:58]} 6. Nc3 {[%emt 0:00:33]} Nf6 {[%emt 0:00:12]} 7. hxg5 {[%emt 0:01:35]} Nxe4 {[%emt 0:00:05]} 8. Nxe4 {[%emt 0:00:02]} Qxe4+ {[%emt 0:00:03]} 9. Qe2 {[%emt 0:00:01]} Qxe2+ {[%emt 0:00:17]} 10. Nxe2 {[%emt 0:00:02]} Bg7 {[%emt 0:00:50]} 11. Bxf4 {[%emt 0:00:12]} Bg4 {[%emt 0:00:10]} 12. O-O-O {[%emt 0:00:31]} Nc6 {[%emt 0:00:32]} 13. c3 {[%emt 0:00:05]} O-O-O {[%emt 0:00:31]} 14. Rh4 {[%emt 0:00:05]} Bxe2 {[%emt 0:00:28]} 15. Bxe2 {[%emt 0:00:02]} Ne7 {[%emt 0:00:14]} 16. Bd2 {[%emt 0:00:39]} Rde8 {[%emt 0:00:37]} 17. Bg4+ {[%emt 0:00:20]} Kb8 {[%emt 0:00:19]} 18. Rdh1 {[%emt 0:01:45]} f6 {[%emt 0:02:41]} *

[Event "29th Czech Open-Rapid 2018"]
[Site "Pardubice"]
[Date "2018.07.19"]
[Round "6"]
[White "Gabr, Mohsen"]
[Black "Ruzicka, Josef"]
[Result "1-0"]
[ECO "E65"]
[WhiteElo "2181"]
[BlackElo "2089"]
[Annotator "NA"]
[PlyCount "137"]
[EventDate "2018.07.18"]
[EventType "swiss"]
[EventCountry "CZE"]
[SourceTitle "playchess.com"]
[Source "ChessBase"]
[SourceQuality "1"]
[TimeControl "900+10"]

1. d4 {[%emt 0:00:00]} Nf6 {[%emt 0:00:00]} 2. Nf3 {[%emt 0:00:00]} g6 {[%emt 0:00:00]} 3. g3 {[%emt 0:00:00]} Bg7 {[%emt 0:00:02]} 4. Bg2 {[%emt 0:00:00]} O-O {[%emt 0:00:07]} 5. O-O {[%emt 0:00:01]} d6 {[%emt 0:00:04]} 6. c4 {[%emt 0:00:03]} c5 {[%emt 0:00:22]} 7. Nc3 {[%emt 0:00:08]} Nc6 {[%emt 0:00:02]} 8. dxc5 {[%emt 0:00:51]} dxc5 {[%emt 0:00:02]} 9. Be3 {[%emt 0:00:19]} Nd7 {[%emt 0:02:41]} 10. Qd2 {[%emt 0:00:41]} Qa5 {[%emt 0:02:09]} 11. Bh6 {[%emt 0:00:50]} Nf6 {[%emt 0:01:43]} 12. Bxg7 {[%emt 0:00:08]} Kxg7 {[%emt 0:00:01]} 13. e3 {[%emt 0:00:10]} Rd8 {[%emt 0:00:48]} 14. Qe2 {[%emt 0:00:22]} Bf5 {[%emt 0:00:29]} 15. Rfd1 {[%emt 0:00:19]} Ne4 {[%emt 0:01:01]} 16. Nxe4 {[%emt 0:01:11]} Bxe4 {[%emt 0:00:04]} 17. b3 {[%emt 0:00:29]} Rxd1+ {[%emt 0:01:26]} 18. Rxd1 {[%emt 0:00:02]} Rd8 {[%emt 0:00:01]} 19. Rxd8 {[%emt 0:00:59]} Qxd8 {[%emt 0:00:03]} 20. Ne1 {[%emt 0:00:07]} Bxg2 {[%emt 0:00:18]} 21. Kxg2 {[%emt 0:00:01]} b6 {[%emt 0:01:53]} 22. h4 {[%emt 0:00:02]} h5 {[%emt 0:00:10]} 23. Qb2+ {[%emt 0:00:07]} Kg8 {[%emt 0:00:06]} 24. Nf3 {[%emt 0:00:20]} Qd6 {[%emt 0:00:14]} 25. Ng5 {[%emt 0:00:14]} Nb4 {[%emt 0:01:13]} 26. Kh2 {[%emt 0:01:09]} Nc6 {[%emt 0:01:27]} 27. Qe2 {[%emt 0:00:32]} Qf6 {[%emt 0:00:32]} 28. Nh3 {[%emt 0:00:33]} Ne5 {[%emt 0:00:14]} 29. Nf4 {[%emt 0:00:28]} Qd6 {[%emt 0:00:38]} 30. Kg2 {[%emt 0:01:00]} Qc6+ {[%emt 0:00:10]} 31. f3 {[%emt 0:00:25]} e6 {[%emt 0:00:49]} 32. Nh3 {[%emt 0:00:09]} Qd6 {[%emt 0:00:12]} 33. Nf2 {[%emt 0:00:38]} Kg7 {[%emt 0:00:18]} 34. Qb2 {[%emt 0:00:27]} f6 {[%emt 0:00:30]} 35. Qc2 {[%emt 0:00:37]} Qd7 {[%emt 0:00:12]} 36. Qe2 {[%emt 0:01:24]} Qd8 {[%emt 0:00:06]} 37. f4 {[%emt 0:00:14]} Nc6 {[%emt 0:00:18]} 38. Qf3 {[%emt 0:00:10]} Qd7 {[%emt 0:00:09]} 39. g4 {[%emt 0:01:09]} hxg4 {[%emt 0:00:06]} 40. Qxg4 {[%emt 0:00:01]} Kh6 {[%emt 0:00:37]} 41. Qf3 {[%emt 0:01:55]} Kg7 {[%emt 0:00:07]} 42. h5 {[%emt 0:00:06]} gxh5 {[%emt 0:00:04]} 43. Qxh5 {[%emt 0:00:03]} Ne7 {[%emt 0:00:13]} 44. e4 {[%emt 0:02:10]} Qd2 {[%emt 0:00:01]} 45. Qg4+ Kf7 {[%emt 0:00:10]} 46. Qh4 {[%emt 0:01:32]} Kg7 {[%emt 0:00:13]} 47. e5 {[%emt 0:00:08]} Nf5 {[%emt 0:00:24]} 48. Qxf6+ {[%emt 0:00:06]} Kh7 {[%emt 0:00:07]} 49. Qf7+ {[%emt 0:00:27]} Kh8 {[%emt 0:00:03]} 50. Qf8+ {[%emt 0:00:15]} Kh7 {[%emt 0:00:02]} 51. Qf7+ {[%emt 0:00:01]} Kh8 {[%emt 0:00:00]} 52. Qf6+ {[%emt 0:00:10]} Kh7 {[%emt 0:00:02]} 53. Qf7+ {[%emt 0:00:18]} Kh8 {[%emt 0:00:24]} 54. Qf6+ Kh7 {[%emt 0:00:14]} 55. Qxe6 {[%emt 0:00:00]} Qxf4 {[%emt 0:00:01]} 56. Qf7+ {[%emt 0:00:00]} Kh8 {[%emt 0:00:03]} 57. Qe8+ {[%emt 0:00:00]} Kg7 {[%emt 0:00:21]} 58. Qd7+ {[%emt 0:00:00]} Kg6 {[%emt 0:00:24]} 59. Qc6+ {[%emt 0:00:00]} Kh7 {[%emt 0:00:17]} 60. Qe4 {[%emt 0:00:00]} Qg5+ {[%emt 0:00:21]} 61. Kf1 {[%emt 0:00:22]} Kh8 {[%emt 0:00:05]} 62. Qa8+ {[%emt 0:00:38]} Kh7 {[%emt 0:00:13]} 63. Qxa7+ {[%emt 0:00:01]} Kh6 {[%emt 0:00:01]} 64. Qxb6+ {[%emt 0:00:04]} Kh5 {[%emt 0:00:00]} 65. Qf6 {[%emt 0:00:15]} Qc1+ {[%emt 0:00:24]} 66. Ke2 {[%emt 0:00:11]} Qe3+ {[%emt 0:00:04]} 67. Kf1 {[%emt 0:00:06]} Qc1+ {[%emt 0:00:14]} 68. Kg2 {[%emt 0:00:06]} Ne3+ {[%emt 0:00:20]} 69. Kf3 {[%emt 0:00:05]} 1-0